[Event "Titled Tuesday Blitz August 22 Late 2023"]
[White "Karas, Marek"]
[Black "Gunduz, Umut Erdem"]
[WhiteFideId "14928558"]
[BlackFideId "6381383"]
[WhiteElo "2425"]
[BlackElo "2612"]
[Result "1-0"]
[Round "6"]
[TimeControl "180+1"]
[Date "2023.08.22"]
[WhiteClock "0:00:15"]
[BlackClock "0:00:25"]
[Board "84"]

1. d4 {[%clk 0:03:00]}  Nf6 {[%clk 0:02:55]} 2. Nf3 {[%clk 0:03:00]}  c5 {[%clk 0:02:54]} 3. d5 {[%clk 0:02:59]}  e6 {[%clk 0:02:54]} 4. Nc3 {[%clk 0:02:59]}  exd5 {[%clk 0:02:54]} 5. Nxd5 {[%clk 0:02:59]}  Nxd5 {[%clk 0:02:55]} 6. Qxd5 {[%clk 0:02:59]}  Be7 {[%clk 0:02:55]} 7. e4 {[%clk 0:02:57]}  O-O {[%clk 0:02:55]} 8. Bc4 {[%clk 0:02:56]}  d6 {[%clk 0:02:55]} 9. O-O {[%clk 0:02:51]}  Nd7 {[%clk 0:02:51]} 10. Qd3 {[%clk 0:02:45]}  Nb6 {[%clk 0:02:50]} 11. Bb3 {[%clk 0:02:43]}  Qc7 {[%clk 0:02:50]} 12. Bd5 {[%clk 0:02:37]}  Nxd5 {[%clk 0:02:50]} 13. Qxd5 {[%clk 0:02:37]}  Be6 {[%clk 0:02:50]} 14. Qd3 {[%clk 0:02:32]}  Rfd8 {[%clk 0:02:50]} 15. Bf4 {[%clk 0:02:32]}  Qc6 {[%clk 0:02:50]} 16. c4 {[%clk 0:02:28]}  a6 {[%clk 0:02:51]} 17. Ng5 {[%clk 0:02:14]}  Bf6 {[%clk 0:02:27]} 18. Nxe6 {[%clk 0:02:10]}  fxe6 {[%clk 0:02:28]} 19. Rab1 {[%clk 0:02:08]}  d5 {[%clk 0:02:24]} 20. exd5 {[%clk 0:02:08]}  exd5 {[%clk 0:02:24]} 21. cxd5 {[%clk 0:02:06]}  Rxd5 {[%clk 0:02:24]} 22. Qf3 {[%clk 0:02:03]}  Rad8 {[%clk 0:02:24]} 23. b3 {[%clk 0:02:00]}  b5 {[%clk 0:02:25]} 24. g3 {[%clk 0:01:49]}  c4 {[%clk 0:02:25]} 25. bxc4 {[%clk 0:01:49]}  bxc4 {[%clk 0:02:26]} 26. Kg2 {[%clk 0:01:45]}  c3 {[%clk 0:02:25]} 27. Rbe1 {[%clk 0:01:35]}  Qc4 {[%clk 0:02:23]} 28. Qe2 {[%clk 0:01:27]}  Qxe2 {[%clk 0:02:02]} 29. Rxe2 {[%clk 0:01:27]}  Rb5 {[%clk 0:02:02]} 30. Rc1 {[%clk 0:01:15]}  Rb2 {[%clk 0:02:01]} 31. Rec2 {[%clk 0:01:08]}  Rd5 {[%clk 0:01:56]} 32. h4 {[%clk 0:01:04]}  Ra5 {[%clk 0:01:54]} 33. Rxc3 {[%clk 0:00:40]}  Bxc3 {[%clk 0:01:54]} 34. Rxc3 {[%clk 0:00:41]}  Raxa2 {[%clk 0:01:52]} 35. Be3 {[%clk 0:00:41]}  Rc2 {[%clk 0:01:49]} 36. Rb3 {[%clk 0:00:39]}  a5 {[%clk 0:01:22]} 37. Rb8+ {[%clk 0:00:34]}  Kf7 {[%clk 0:01:22]} 38. Rb7+ {[%clk 0:00:34]}  Ke6 {[%clk 0:01:14]} 39. Rxg7 {[%clk 0:00:34]}  Re2 {[%clk 0:01:10]} 40. Kf3 {[%clk 0:00:30]}  a4 {[%clk 0:01:07]} 41. Rxh7 {[%clk 0:00:28]}  a3 {[%clk 0:01:07]} 42. Ra7 {[%clk 0:00:26]}  Rec2 {[%clk 0:00:52]} 43. h5 {[%clk 0:00:24]}  Ra1 {[%clk 0:00:51]} 44. h6 {[%clk 0:00:24]}  a2 {[%clk 0:00:52]} 45. h7 {[%clk 0:00:19]}  Rh1 {[%clk 0:00:50]} 46. Bd4 {[%clk 0:00:16]}  Rcc1 {[%clk 0:00:33]} 47. h8=Q {[%clk 0:00:14]}  Rxh8 {[%clk 0:00:25]} 48. Bxh8 {[%clk 0:00:15]} 1-0


[Site "https://www.chess.com"]

[Event "Titled Tuesday Blitz August 22 Late 2023"]
[White "Leenhouts, Koen"]
[Black "laidfrq"]
[WhiteFideId "1008439"]
[WhiteElo "2600"]
[BlackElo "2417"]
[Result "0-1"]
[Round "6"]
[TimeControl "180+1"]
[Date "2023.08.22"]
[WhiteClock "0:00:01"]
[BlackClock "0:01:04"]
[Board "85"]

1. d4 {[%clk 0:03:00]}  Nf6 {[%clk 0:02:59]} 2. Nf3 {[%clk 0:03:00]}  d5 {[%clk 0:02:59]} 3. g3 {[%clk 0:03:00]}  Bf5 {[%clk 0:02:56]} 4. Bg2 {[%clk 0:02:59]}  c6 {[%clk 0:02:56]} 5. Nh4 {[%clk 0:02:52]}  Be4 {[%clk 0:02:46]} 6. f3 {[%clk 0:02:50]}  Bg6 {[%clk 0:02:46]} 7. Nxg6 {[%clk 0:02:39]}  hxg6 {[%clk 0:02:47]} 8. c3 {[%clk 0:02:34]}  Nbd7 {[%clk 0:02:46]} 9. Qb3 {[%clk 0:02:30]}  Qb6 {[%clk 0:02:46]} 10. Nd2 {[%clk 0:02:26]}  e5 {[%clk 0:02:37]} 11. dxe5 {[%clk 0:02:18]}  Nxe5 {[%clk 0:02:38]} 12. Qxb6 {[%clk 0:02:15]}  axb6 {[%clk 0:02:38]} 13. Nb3 {[%clk 0:02:06]}  Bd6 {[%clk 0:02:36]} 14. Bf4 {[%clk 0:01:54]}  Nh5 {[%clk 0:02:29]} 15. Bd2 {[%clk 0:01:46]}  f5 {[%clk 0:02:21]} 16. a3 {[%clk 0:01:39]}  Kf7 {[%clk 0:02:10]} 17. O-O-O {[%clk 0:01:26]}  Nf6 {[%clk 0:02:06]} 18. Bf4 {[%clk 0:01:21]}  Rae8 {[%clk 0:01:55]} 19. e4 {[%clk 0:01:21]}  Nc4 {[%clk 0:01:45]} 20. Bxd6 {[%clk 0:01:16]}  Nxd6 {[%clk 0:01:46]} 21. exd5 {[%clk 0:01:14]}  Nxd5 {[%clk 0:01:47]} 22. f4 {[%clk 0:01:13]}  Ne4 {[%clk 0:01:46]} 23. Bxe4 {[%clk 0:01:09]}  Rxe4 {[%clk 0:01:46]} 24. Rd2 {[%clk 0:01:08]}  Rhe8 {[%clk 0:01:45]} 25. Nd4 {[%clk 0:01:05]}  Ne3 {[%clk 0:01:41]} 26. Nf3 {[%clk 0:01:03]}  R4e7 {[%clk 0:01:37]} 27. Ne5+ {[%clk 0:01:01]}  Kg8 {[%clk 0:01:29]} 28. Nxg6 {[%clk 0:01:00]}  Rf7 {[%clk 0:01:22]} 29. Ne5 {[%clk 0:00:59]}  Rfe7 {[%clk 0:01:22]} 30. Re1 {[%clk 0:00:56]}  Nd5 {[%clk 0:01:22]} 31. c4 {[%clk 0:00:54]}  Nf6 {[%clk 0:01:22]} 32. Kc2 {[%clk 0:00:49]}  Ne4 {[%clk 0:01:22]} 33. Rd3 {[%clk 0:00:44]}  Nc5 {[%clk 0:01:22]} 34. Rde3 {[%clk 0:00:43]}  Ne4 {[%clk 0:01:16]} 35. Nf3 {[%clk 0:00:43]}  c5 {[%clk 0:01:15]} 36. Ng5 {[%clk 0:00:41]}  g6 {[%clk 0:01:11]} 37. Nxe4 {[%clk 0:00:40]}  fxe4 {[%clk 0:01:10]} 38. Rd1 {[%clk 0:00:40]}  Kf7 {[%clk 0:01:08]} 39. Rd6 {[%clk 0:00:39]}  Re6 {[%clk 0:01:09]} 40. Rd7+ {[%clk 0:00:34]}  R8e7 {[%clk 0:01:09]} 41. Rxe7+ {[%clk 0:00:34]}  Kxe7 {[%clk 0:01:10]} 42. Kd2 {[%clk 0:00:33]}  Kf6 {[%clk 0:01:10]} 43. Ke2 {[%clk 0:00:33]}  Kf5 {[%clk 0:01:10]} 44. h3 {[%clk 0:00:33]}  g5 {[%clk 0:01:10]} 45. fxg5 {[%clk 0:00:31]}  Kxg5 {[%clk 0:01:11]} 46. Rb3 {[%clk 0:00:31]}  Rh6 {[%clk 0:01:10]} 47. Ke3 {[%clk 0:00:28]}  Kf5 {[%clk 0:01:09]} 48. h4 {[%clk 0:00:25]}  Rg6 {[%clk 0:01:10]} 49. Kf2 {[%clk 0:00:24]}  Kg4 {[%clk 0:01:07]} 50. Re3 {[%clk 0:00:24]}  Rf6+ {[%clk 0:01:07]} 51. Kg2 {[%clk 0:00:23]}  Re6 {[%clk 0:01:07]} 52. b4 {[%clk 0:00:23]}  Re5 {[%clk 0:01:05]} 53. bxc5 {[%clk 0:00:22]}  bxc5 {[%clk 0:01:05]} 54. a4 {[%clk 0:00:22]}  b6 {[%clk 0:01:05]} 55. h5 {[%clk 0:00:15]}  Kxh5 {[%clk 0:01:05]} 56. Kh3 {[%clk 0:00:16]}  Kg5 {[%clk 0:01:05]} 57. Kh2 {[%clk 0:00:14]}  Re6 {[%clk 0:01:05]} 58. Kh3 {[%clk 0:00:14]}  Kf5 {[%clk 0:01:06]} 59. Re1 {[%clk 0:00:13]}  Rh6+ {[%clk 0:01:04]} 60. Kg2 {[%clk 0:00:12]}  Ke5 {[%clk 0:01:05]} 61. Rb1 {[%clk 0:00:10]}  Kd4 {[%clk 0:01:04]} 62. Re1 {[%clk 0:00:10]}  e3 {[%clk 0:01:02]} 63. Kf3 {[%clk 0:00:10]}  Rf6+ {[%clk 0:01:03]} 64. Ke2 {[%clk 0:00:09]}  Rf2+ {[%clk 0:01:03]} 65. Kd1 {[%clk 0:00:09]}  Ra2 {[%clk 0:01:03]} 66. g4 {[%clk 0:00:01]}  Kd3 {[%clk 0:01:04]} 0-1


[Site "https://www.chess.com"]

[Event "Titled Tuesday Blitz August 22 Late 2023"]
[White "Ovezdurdyyeva, Jemal"]
[Black "Ibadov, Dashgyn"]
[WhiteFideId "14001888"]
[BlackFideId "24107514"]
[WhiteElo "2400"]
[BlackElo "2599"]
[Result "0-1"]
[Round "6"]
[TimeControl "180+1"]
[Date "2023.08.22"]
[WhiteClock "0:00:52"]
[BlackClock "0:01:22"]
[Board "86"]

1. e4 {[%clk 0:02:31]}  e5 {[%clk 0:02:59]} 2. Nf3 {[%clk 0:02:31]}  Nc6 {[%clk 0:02:59]} 3. Bc4 {[%clk 0:02:30]}  Nf6 {[%clk 0:02:57]} 4. Nc3 {[%clk 0:02:29]}  Bc5 {[%clk 0:02:42]} 5. O-O {[%clk 0:02:27]}  O-O {[%clk 0:02:37]} 6. d3 {[%clk 0:02:26]}  a6 {[%clk 0:02:32]} 7. Bg5 {[%clk 0:02:24]}  Be7 {[%clk 0:02:27]} 8. h3 {[%clk 0:02:20]}  b5 {[%clk 0:02:18]} 9. Bb3 {[%clk 0:02:20]}  d6 {[%clk 0:02:16]} 10. Ne2 {[%clk 0:02:18]}  Na5 {[%clk 0:02:14]} 11. c3 {[%clk 0:02:13]}  Nxb3 {[%clk 0:02:14]} 12. axb3 {[%clk 0:02:13]}  Bb7 {[%clk 0:02:11]} 13. Ng3 {[%clk 0:02:10]}  h6 {[%clk 0:02:01]} 14. Be3 {[%clk 0:02:09]}  Re8 {[%clk 0:01:47]} 15. Nf5 {[%clk 0:02:08]}  Bf8 {[%clk 0:01:48]} 16. Qd2 {[%clk 0:01:57]}  d5 {[%clk 0:01:47]} 17. exd5 {[%clk 0:01:46]}  Bxd5 {[%clk 0:01:48]} 18. c4 {[%clk 0:01:29]}  Bxf3 {[%clk 0:01:47]} 19. gxf3 {[%clk 0:01:30]}  Qd7 {[%clk 0:01:47]} 20. Ng3 {[%clk 0:01:30]}  Qxh3 {[%clk 0:01:46]} 21. Qe2 {[%clk 0:01:07]}  h5 {[%clk 0:01:28]} 22. Rfc1 {[%clk 0:01:04]}  h4 {[%clk 0:01:25]} 23. Ne4 {[%clk 0:01:04]}  Nxe4 {[%clk 0:01:21]} 24. fxe4 {[%clk 0:00:52]}  Re6 {[%clk 0:01:22]} 0-1


[Site "https://www.chess.com"]

[Event "Titled Tuesday Blitz August 22 Late 2023"]
[White "whiteglovethief"]
[Black "Ribeiro, Matheus Mendes Domingues"]
[BlackFideId "324226923"]
[WhiteElo "2379"]
[BlackElo "2599"]
[Result "0-1"]
[Round "6"]
[TimeControl "180+1"]
[Date "2023.08.22"]
[WhiteClock "0:02:14"]
[BlackClock "0:02:22"]
[Board "87"]

1. d4 {[%clk 0:03:00]}  d5 {[%clk 0:03:00]} 2. c4 {[%clk 0:03:00]}  e6 {[%clk 0:03:00]} 3. Nf3 {[%clk 0:03:00]}  Nf6 {[%clk 0:03:00]} 4. g3 {[%clk 0:03:00]}  Be7 {[%clk 0:03:01]} 5. Bg2 {[%clk 0:03:01]}  O-O {[%clk 0:03:02]} 6. O-O {[%clk 0:03:01]}  dxc4 {[%clk 0:03:02]} 7. Qc2 {[%clk 0:03:01]}  a6 {[%clk 0:03:03]} 8. a4 {[%clk 0:02:55]}  Bd7 {[%clk 0:03:03]} 9. Rd1 {[%clk 0:02:55]}  Bc6 {[%clk 0:03:02]} 10. Nbd2 {[%clk 0:02:49]}  b5 {[%clk 0:02:55]} 11. b3 {[%clk 0:02:48]}  cxb3 {[%clk 0:02:50]} 12. Nxb3 {[%clk 0:02:49]}  Be4 {[%clk 0:02:42]} 13. Qb2 {[%clk 0:02:41]}  Nc6 {[%clk 0:02:39]} 14. Nc5 {[%clk 0:02:33]}  Bxc5 {[%clk 0:02:38]} 15. Bf4 {[%clk 0:02:29]}  Bd6 {[%clk 0:02:34]} 16. Ne5 {[%clk 0:02:28]}  Bxg2 {[%clk 0:02:30]} 17. Kxg2 {[%clk 0:02:28]}  Bxe5 {[%clk 0:02:24]} 18. dxe5 {[%clk 0:02:27]}  Nd5 {[%clk 0:02:25]} 19. axb5 {[%clk 0:02:25]}  axb5 {[%clk 0:02:21]} 20. Rxa8 {[%clk 0:02:14]}  Qxa8 {[%clk 0:02:22]} 0-1


[Site "https://www.chess.com"]

[Event "Titled Tuesday Blitz August 22 Late 2023"]
[White "Labussiere, Yago"]
[Black "Veiga, Jose Francisco R P Neves"]
[WhiteFideId "2186969"]
[BlackFideId "1930087"]
[WhiteElo "2373"]
[BlackElo "2598"]
[Result "0-1"]
[Round "6"]
[TimeControl "180+1"]
[Date "2023.08.22"]
[WhiteClock "0:00:02"]
[BlackClock "0:00:17"]
[Board "88"]

1. c4 {[%clk 0:03:00]}  Nf6 {[%clk 0:02:51]} 2. Nc3 {[%clk 0:03:00]}  c6 {[%clk 0:02:51]} 3. e4 {[%clk 0:03:00]}  d5 {[%clk 0:02:51]} 4. e5 {[%clk 0:03:00]}  d4 {[%clk 0:02:50]} 5. exf6 {[%clk 0:02:59]}  dxc3 {[%clk 0:02:51]} 6. fxg7 {[%clk 0:02:38]}  cxd2+ {[%clk 0:02:49]} 7. Qxd2 {[%clk 0:02:36]}  Qxd2+ {[%clk 0:02:49]} 8. Bxd2 {[%clk 0:02:36]}  Bxg7 {[%clk 0:02:50]} 9. O-O-O {[%clk 0:02:36]}  Bf5 {[%clk 0:02:50]} 10. Nf3 {[%clk 0:02:16]}  Na6 {[%clk 0:02:49]} 11. Be2 {[%clk 0:01:49]}  O-O-O {[%clk 0:02:46]} 12. Nh4 {[%clk 0:01:19]}  Be6 {[%clk 0:02:40]} 13. Be3 {[%clk 0:01:15]}  Bf6 {[%clk 0:02:33]} 14. g3 {[%clk 0:01:08]}  c5 {[%clk 0:02:05]} 15. a3 {[%clk 0:00:54]}  b6 {[%clk 0:02:00]} 16. Ng2 {[%clk 0:00:45]}  Bf5 {[%clk 0:01:57]} 17. Nf4 {[%clk 0:00:44]}  e6 {[%clk 0:01:57]} 18. h3 {[%clk 0:00:35]}  Be4 {[%clk 0:01:48]} 19. Rhe1 {[%clk 0:00:34]}  Nb8 {[%clk 0:01:45]} 20. Nh5 {[%clk 0:00:29]}  Be7 {[%clk 0:01:43]} 21. Rxd8+ {[%clk 0:00:19]}  Rxd8 {[%clk 0:01:42]} 22. Rd1 {[%clk 0:00:19]}  Nc6 {[%clk 0:01:42]} 23. Rxd8+ {[%clk 0:00:19]}  Kxd8 {[%clk 0:01:42]} 24. Kd2 {[%clk 0:00:17]}  f5 {[%clk 0:01:24]} 25. f4 {[%clk 0:00:16]}  Kd7 {[%clk 0:01:21]} 26. g4 {[%clk 0:00:16]}  Nd4 {[%clk 0:01:12]} 27. Bxd4 {[%clk 0:00:15]}  cxd4 {[%clk 0:01:13]} 28. g5 {[%clk 0:00:15]}  e5 {[%clk 0:01:06]} 29. h4 {[%clk 0:00:14]}  Ke6 {[%clk 0:00:58]} 30. fxe5 {[%clk 0:00:12]}  Kxe5 {[%clk 0:00:59]} 31. Bd3 {[%clk 0:00:11]}  a5 {[%clk 0:00:53]} 32. Ng3 {[%clk 0:00:10]}  Kf4 {[%clk 0:00:48]} 33. Ne2+ {[%clk 0:00:08]}  Kg4 {[%clk 0:00:46]} 34. Nxd4 {[%clk 0:00:08]}  Bc5 {[%clk 0:00:43]} 35. Ne6 {[%clk 0:00:05]}  Kxh4 {[%clk 0:00:39]} 36. Nf8 {[%clk 0:00:04]}  Kxg5 {[%clk 0:00:35]} 37. Nxh7+ {[%clk 0:00:05]}  Kf4 {[%clk 0:00:35]} 38. Nf6 {[%clk 0:00:04]}  Be3+ {[%clk 0:00:34]} 39. Ke2 {[%clk 0:00:04]}  Bf3+ {[%clk 0:00:34]} 40. Kf1 {[%clk 0:00:05]}  Bd4 {[%clk 0:00:34]} 41. Nd5+ {[%clk 0:00:04]}  Ke5 {[%clk 0:00:27]} 42. b4 {[%clk 0:00:03]}  a4 {[%clk 0:00:23]} 43. Bc2 {[%clk 0:00:02]}  Bb2 {[%clk 0:00:19]} 44. Bxa4 {[%clk 0:00:02]}  Bxa3 {[%clk 0:00:19]} 45. b5 {[%clk 0:00:02]}  Bc5 {[%clk 0:00:19]} 46. Bc2 {[%clk 0:00:03]}  f4 {[%clk 0:00:18]} 47. Bd3 {[%clk 0:00:03]}  Bg4 {[%clk 0:00:14]} 48. Be2 {[%clk 0:00:03]}  f3 {[%clk 0:00:14]} 49. Bd3 {[%clk 0:00:03]}  Bh3+ {[%clk 0:00:14]} 50. Ke1 {[%clk 0:00:04]}  Kd4 {[%clk 0:00:14]} 51. Bf1 {[%clk 0:00:02]}  Bxf1 {[%clk 0:00:14]} 52. Kxf1 {[%clk 0:00:03]}  Kxc4 {[%clk 0:00:15]} 53. Nf4 {[%clk 0:00:03]}  Kxb5 {[%clk 0:00:15]} 54. Nd3 {[%clk 0:00:03]}  Kc4 {[%clk 0:00:16]} 55. Ne1 {[%clk 0:00:04]}  f2 {[%clk 0:00:15]} 56. Nc2 {[%clk 0:00:03]}  Kc3 {[%clk 0:00:16]} 57. Na1 {[%clk 0:00:02]}  Kb2 {[%clk 0:00:16]} 58. Ke2 {[%clk 0:00:02]}  Kxa1 {[%clk 0:00:16]} 59. Kf1 {[%clk 0:00:02]}  Kb2 {[%clk 0:00:17]} 0-1


[Site "https://www.chess.com"]

[Event "Titled Tuesday Blitz August 22 Late 2023"]
[White "Postlmayer, Jakob"]
[Black "Akhayan, Ruben"]
[WhiteFideId "1643622"]
[BlackFideId "204439"]
[WhiteElo "2596"]
[BlackElo "2280"]
[Result "1-0"]
[Round "6"]
[TimeControl "180+1"]
[Date "2023.08.22"]
[WhiteClock "0:00:43"]
[BlackClock "0:00:18"]
[Board "89"]

1. d4 {[%clk 0:03:00]}  Nf6 {[%clk 0:02:59]} 2. Nf3 {[%clk 0:03:00]}  g6 {[%clk 0:02:59]} 3. Nbd2 {[%clk 0:02:59]}  d5 {[%clk 0:02:58]} 4. b3 {[%clk 0:02:56]}  Bg7 {[%clk 0:02:58]} 5. Bb2 {[%clk 0:02:57]}  O-O {[%clk 0:02:58]} 6. e3 {[%clk 0:02:56]}  c6 {[%clk 0:02:51]} 7. Be2 {[%clk 0:02:53]}  a5 {[%clk 0:02:50]} 8. a3 {[%clk 0:02:51]}  Bg4 {[%clk 0:02:42]} 9. c4 {[%clk 0:02:50]}  Nbd7 {[%clk 0:02:42]} 10. O-O {[%clk 0:02:49]}  Ne4 {[%clk 0:02:34]} 11. h3 {[%clk 0:02:45]}  Bxf3 {[%clk 0:02:33]} 12. Nxf3 {[%clk 0:02:37]}  e6 {[%clk 0:02:26]} 13. Qc2 {[%clk 0:02:36]}  a4 {[%clk 0:02:18]} 14. b4 {[%clk 0:02:35]}  Qe7 {[%clk 0:01:53]} 15. Rac1 {[%clk 0:02:30]}  Rfc8 {[%clk 0:01:53]} 16. Rfd1 {[%clk 0:02:29]}  h6 {[%clk 0:01:52]} 17. Nd2 {[%clk 0:02:21]}  Nxd2 {[%clk 0:01:51]} 18. Qxd2 {[%clk 0:02:20]}  Kh7 {[%clk 0:01:48]} 19. Qc2 {[%clk 0:02:16]}  b5 {[%clk 0:01:38]} 20. cxb5 {[%clk 0:02:11]}  cxb5 {[%clk 0:01:38]} 21. Qb1 {[%clk 0:01:41]}  Rxc1 {[%clk 0:01:17]} 22. Rxc1 {[%clk 0:01:38]}  Rb8 {[%clk 0:01:17]} 23. Rc6 {[%clk 0:01:30]}  Nf6 {[%clk 0:01:01]} 24. Qf1 {[%clk 0:01:19]}  Qb7 {[%clk 0:00:46]} 25. Rc5 {[%clk 0:01:18]}  Ne4 {[%clk 0:00:39]} 26. Rxb5 {[%clk 0:01:17]}  Qc7 {[%clk 0:00:40]} 27. Rxb8 {[%clk 0:01:17]}  Qxb8 {[%clk 0:00:40]} 28. Qc1 {[%clk 0:01:11]}  Qd8 {[%clk 0:00:37]} 29. Bd3 {[%clk 0:01:06]}  Nd6 {[%clk 0:00:36]} 30. Qc6 {[%clk 0:01:04]}  Bf8 {[%clk 0:00:35]} 31. Qxa4 {[%clk 0:01:04]}  Qf6 {[%clk 0:00:35]} 32. Qc2 {[%clk 0:01:03]}  h5 {[%clk 0:00:32]} 33. a4 {[%clk 0:01:00]}  Qd8 {[%clk 0:00:28]} 34. b5 {[%clk 0:00:56]}  Qa5 {[%clk 0:00:28]} 35. Bc3 {[%clk 0:00:54]}  Qb6 {[%clk 0:00:28]} 36. Bb4 {[%clk 0:00:53]}  Be7 {[%clk 0:00:26]} 37. a5 {[%clk 0:00:52]}  Qb8 {[%clk 0:00:26]} 38. b6 {[%clk 0:00:51]}  Bf8 {[%clk 0:00:24]} 39. Qc6 {[%clk 0:00:50]}  Nf5 {[%clk 0:00:24]} 40. Bxf8 {[%clk 0:00:48]}  Qxf8 {[%clk 0:00:24]} 41. Bxf5 {[%clk 0:00:48]}  exf5 {[%clk 0:00:18]} 42. Qxd5 {[%clk 0:00:43]} 1-0


[Site "https://www.chess.com"]

[Event "Titled Tuesday Blitz August 22 Late 2023"]
[White "Tanenbaum, Zachary"]
[Black "Graif, William"]
[WhiteFideId "2060850"]
[BlackFideId "2609835"]
[WhiteElo "2699"]
[BlackElo "2517"]
[Result "1-0"]
[Round "6"]
[TimeControl "180+1"]
[Date "2023.08.22"]
[WhiteClock "0:00:16"]
[BlackClock "0:00:01"]
[Board "91"]

1. e4 {[%clk 0:03:00]}  e5 {[%clk 0:02:54]} 2. Nf3 {[%clk 0:03:00]}  Bc5 {[%clk 0:02:54]} 3. Nxe5 {[%clk 0:02:59]}  Nc6 {[%clk 0:02:54]} 4. Nxc6 {[%clk 0:02:39]}  dxc6 {[%clk 0:02:54]} 5. d3 {[%clk 0:02:37]}  Nf6 {[%clk 0:02:49]} 6. Be2 {[%clk 0:02:31]}  h5 {[%clk 0:02:48]} 7. h3 {[%clk 0:02:30]}  Qd4 {[%clk 0:02:43]} 8. Be3 {[%clk 0:02:08]}  Qxb2 {[%clk 0:02:42]} 9. Nd2 {[%clk 0:02:04]}  Bxe3 {[%clk 0:02:09]} 10. fxe3 {[%clk 0:02:05]}  Be6 {[%clk 0:02:09]} 11. O-O {[%clk 0:01:26]}  O-O-O {[%clk 0:01:50]} 12. d4 {[%clk 0:01:27]}  c5 {[%clk 0:01:21]} 13. d5 {[%clk 0:01:21]}  Qc3 {[%clk 0:01:14]} 14. Bd3 {[%clk 0:01:01]}  Bd7 {[%clk 0:01:03]} 15. a4 {[%clk 0:00:59]}  Rhe8 {[%clk 0:01:02]} 16. Nc4 {[%clk 0:00:29]}  Nxe4 {[%clk 0:00:34]} 17. Ra3 {[%clk 0:00:29]}  Qb4 {[%clk 0:00:32]} 18. Rb3 {[%clk 0:00:30]}  Qxa4 {[%clk 0:00:28]} 19. Ra3 {[%clk 0:00:30]}  Qb4 {[%clk 0:00:26]} 20. Rxa7 {[%clk 0:00:24]}  Bb5 {[%clk 0:00:20]} 21. Rxf7 {[%clk 0:00:23]}  Kb8 {[%clk 0:00:17]} 22. Qa1 {[%clk 0:00:23]}  Ba6 {[%clk 0:00:17]} 23. Rxa6 {[%clk 0:00:19]}  bxa6 {[%clk 0:00:18]} 24. Na5 {[%clk 0:00:17]}  Qc3 {[%clk 0:00:01]} 25. Nc6+ {[%clk 0:00:16]} 1-0


[Site "https://www.chess.com"]

[Event "Titled Tuesday Blitz August 22 Late 2023"]
[White "Wu, Derek"]
[Black "Bilan, Danila"]
[WhiteFideId "30914558"]
[BlackFideId "24161918"]
[WhiteElo "2670"]
[BlackElo "2492"]
[Result "1-0"]
[Round "6"]
[TimeControl "180+1"]
[Date "2023.08.22"]
[WhiteClock "0:01:03"]
[BlackClock "0:00:00"]
[Board "92"]

1. e4 {[%clk 0:03:00]}  c6 {[%clk 0:03:00]} 2. d4 {[%clk 0:03:01]}  d5 {[%clk 0:03:01]} 3. e5 {[%clk 0:03:01]}  c5 {[%clk 0:03:01]} 4. dxc5 {[%clk 0:02:57]}  Nc6 {[%clk 0:03:01]} 5. f4 {[%clk 0:02:57]}  Bf5 {[%clk 0:03:01]} 6. c3 {[%clk 0:02:56]}  e6 {[%clk 0:02:59]} 7. Be3 {[%clk 0:02:56]}  f6 {[%clk 0:02:53]} 8. Nf3 {[%clk 0:02:52]}  fxe5 {[%clk 0:02:49]} 9. fxe5 {[%clk 0:02:53]}  Nge7 {[%clk 0:02:48]} 10. Bd3 {[%clk 0:02:49]}  Bxd3 {[%clk 0:02:42]} 11. Qxd3 {[%clk 0:02:50]}  Ng6 {[%clk 0:02:37]} 12. Bd4 {[%clk 0:02:45]}  Be7 {[%clk 0:02:16]} 13. O-O {[%clk 0:02:36]}  O-O {[%clk 0:02:14]} 14. Na3 {[%clk 0:02:31]}  a6 {[%clk 0:02:06]} 15. Nc2 {[%clk 0:02:28]}  Nf4 {[%clk 0:01:58]} 16. Qd2 {[%clk 0:02:27]}  Na5 {[%clk 0:01:53]} 17. Ne3 {[%clk 0:02:23]}  Rc8 {[%clk 0:01:48]} 18. b4 {[%clk 0:02:22]}  Nc4 {[%clk 0:01:41]} 19. Nxc4 {[%clk 0:02:22]}  dxc4 {[%clk 0:01:42]} 20. Rad1 {[%clk 0:02:07]}  Qd5 {[%clk 0:01:35]} 21. Be3 {[%clk 0:01:48]}  Nd3 {[%clk 0:01:28]} 22. Bg5 {[%clk 0:01:46]}  Bxg5 {[%clk 0:00:58]} 23. Qxg5 {[%clk 0:01:47]}  Rf5 {[%clk 0:00:57]} 24. Qe3 {[%clk 0:01:32]}  Rcf8 {[%clk 0:00:53]} 25. h3 {[%clk 0:01:19]}  h6 {[%clk 0:00:53]} 26. Qd4 {[%clk 0:01:10]}  Qxd4+ {[%clk 0:00:13]} 27. Nxd4 {[%clk 0:01:10]}  Rxe5 {[%clk 0:00:11]} 28. c6 {[%clk 0:01:01]}  bxc6 {[%clk 0:00:10]} 29. Nxc6 {[%clk 0:01:02]}  Re2 {[%clk 0:00:08]} 30. Ne7+ {[%clk 0:01:02]}  Kh7 {[%clk 0:00:00]} 31. Rxf8 {[%clk 0:01:03]} 1-0


[Site "https://www.chess.com"]